[Event "Silves Open 2025"]
[Site "Fissul"]
[Date "2025.03.04"]
[Round "5.39"]
[White "Opatskyy, Danylo"]
[Black "Botelho, Adelino"]
[Result "0-1"]
[Annotator "NA COMBH"]
[ECO "B13"]
[WhiteElo "1490"]
[BlackElo "1550"]
[PlyCount "80"]
[EventDate "2025.03.03"]
[EventType "swiss"]
[EventCountry "POR"]
[SourceTitle "playchess.com"]
[Source "ChessBase"]
[SourceQuality "1"]
[TimeControl "5400+30"]

1. e4 {[%emt 0:00:02]} c6 {[%emt 0:11:49]} 2. d4 {[%emt 0:00:14]} d5 {[%emt 0:00:29]} 3. exd5 {[%emt 0:00:34]} cxd5 {[%emt 0:00:19]} 4. Nf3 {[%emt 0:00:09]} Bg4 {[%emt 0:00:45]} 5. Nbd2 {[%emt 0:00:09]} Nf6 {[%emt 0:02:03]} 6. c4 {[%emt 0:00:09]} e6 {[%emt 0:01:27]} 7. Qb3 {[%emt 0:00:29]} Qc7 {[%emt 0:04:18]} 8. cxd5 {[%emt 0:01:37]} exd5 {[%emt 0:03:43]} 9. Bd3 {[%emt 0:00:35]} Bd6 {[%emt 0:00:39]} 10. O-O {[%emt 0:00:41]} O-O {[%emt 0:00:28]} 11. h3 {[%emt 0:00:48]} Bh5 {[%emt 0:00:52]} 12. Bc2 {[%emt 0:01:04]} Nbd7 {[%emt 0:00:51]} 13. Qd3 {[%emt 0:01:05]} Bg6 {[%emt 0:02:28]} 14. Qc3 {[%emt 0:03:39]} Qxc3 {[%emt 0:00:25]} 15. bxc3 {[%emt 0:00:10]} Bxc2 {[%emt 0:00:12]} 16. c4 {[%emt 0:00:15]} dxc4 {[%emt 0:02:33]} 17. Nxc4 {[%emt 0:00:08]} Bc7 {[%emt 0:00:55]} 18. Ba3 {[%emt 1:27:42]} Rfe8 {[%emt 0:05:09]} 19. Rfc1 {[%emt 0:00:00]} Be4 {[%emt 0:02:54]} 20. Nfd2 {[%emt 0:00:00]} Bf4 {[%emt 0:02:35]} 21. Nd6 {[%emt 0:00:00]} Bxd2 {[%emt 0:03:40]} 22. Nxe8 {[%emt 0:00:00]} Rxe8 {[%emt 0:00:11]} 23. Rc7 {[%emt 0:00:00]} Bf4 {[%emt 0:01:42]} 24. Rc4 {[%emt 0:00:00]} Nb6 {[%emt 0:02:48]} 25. Rc5 {[%emt 0:00:00]} Bd6 {[%emt 0:01:46]} 26. Rc3 {[%emt 0:00:00]} Bxa3 {[%emt 0:00:40]} 27. Rxa3 {[%emt 0:00:00]} a6 {[%emt 0:01:40]} 28. Re1 {[%emt 0:00:00]} Bd5 {[%emt 0:01:26]} 29. Rc1 {[%emt 0:00:00]} Nc4 {[%emt 0:01:18]} 30. Rg3 {[%emt 0:00:00]} g6 {[%emt 0:01:30]} 31. Rd1 {[%emt 0:00:00]} Re2 {[%emt 0:01:17]} 32. Rc1 {[%emt 0:00:00]} Rxa2 {[%emt 0:00:47]} 33. Rg5 {[%emt 0:00:00]} b5 {[%emt 0:01:21]} 34. Kh2 {[%emt 0:00:00]} a5 {[%emt 0:00:44]} 35. Kg3 {[%emt 0:00:00]} Ne4+ {[%emt 0:00:25]} 36. Kf4 {[%emt 0:00:00]} Nxg5 {[%emt 0:00:16]} 37. Kxg5 {[%emt 0:00:00]} Kg7 {[%emt 0:01:06]} 38. f4 {[%emt 0:00:00]} Rxg2+ {[%emt 0:01:20]} 39. Kh4 {[%emt 0:00:00]} Ne3 {[%emt 0:01:43]} 40. Rg1 {[%emt 0:00:00]} Nf5# {[%emt 0:39:56]} 0-1

[Event "Silves Open 2025"]
[Site "Fissul"]
[Date "2025.03.05"]
[Round "6.1"]
[White "Fernandes, Antonio"]
[Black "Alshameary Puente, Ismael"]
[Result "1/2-1/2"]
[Annotator "TA"]
[ECO "D38"]
[WhiteElo "2326"]
[BlackElo "2343"]
[PlyCount "124"]
[EventDate "2025.03.03"]
[EventType "swiss"]
[EventCountry "POR"]
[SourceTitle "playchess.com"]
[Source "ChessBase"]
[SourceQuality "1"]
[TimeControl "5400+30"]

{[%evp 15,124,22,25,0,6,0,0,-9,-9,-10,6,-25,-29,-22,-20,-40,-28,-55,-56,-50,-38,-34,-34,-37,-28,-27,-21,-22,-23,-21,-20,-40,-41,-54,-54,-67,-36,-29,-34,-76,0,0,79,68,67,64,52,0,0,0,0,-170,-170,-185,-156,-937,0,0,0,0,0,0,0,0,0,0,0,0,0,0,0,0,0,0,0,0,0,0,0,0,0,0,0,0,0,0,0,0,0,0,0,0,0,0,0,0,0,0,0,0,0,0,0,0,0,0,0,0,0,0,0]} 1. d4 {[%emt 0:17:36]} d5 {[%emt 0:00:05]} 2. Nf3 {[%emt 0:00:37]} Nf6 {[%emt 0:00:32]} 3. c4 {[%emt 0:01:04]} e6 {[%emt 0:00:06]} 4. Nc3 {[%emt 0:00:31]} Nbd7 {[%emt 0:00:43]} 5. Bg5 {[%emt 0:11:01]} Bb4 {[%emt 0:00:20]} 6. cxd5 {[%emt 0:07:57]} exd5 {[%emt 0:00:18]} 7. Nd2 {[%emt 0:01:59]} c6 {[%emt 0:02:13]} 8. e3 {[%emt 0:00:14]} O-O {[%emt 0:02:46] 8...Nf8 gains popularity.} 9. Rc1 {[%emt 0:04:05] D38: Queen's Gambit Declined: Ragozin Defence (4 Nf3 Bb4).} Re8 {[%emt 0:02:30]} 10. Bd3 {[%emt 0:01:06]} Nf8 {[%emt 0:01:18]} 11. Bh4 $146 {[%emt 0:16:52]} (11. O-O Ng6 12. e4 dxe4 13. Ndxe4 Be7 14. Re1 Be6 15. Nc5 Bxc5 16. dxc5 h6 17. Bxf6 Qxf6 {1-0 Sabuk,P (2391)-Han,Y (2413) Titled Tuesday intern op 29th Aug Early blitz 2023 (8)}) 11... Ng6 {[%emt 0:06:20]} 12. Bg3 {[%emt 0:00:09]} Bd6 {[%emt 0:02:23]} 13. Qc2 {[%emt 0:02:02]} Nf4 {[%emt 0:07:14]} 14. Bxf4 {[%emt 0:26:18]} Bxf4 {[%emt 0:00:16]} 15. Ne2 {[%emt 0:01:46]} Bd6 {[%emt 0:01:46]} 16. Bf5 {[%emt 0:03:22]} Bxf5 {[%emt 0:03:11]} 17. Qxf5 {[%emt 0:00:02]} Ne4 {[%emt 0:01:12]} 18. Nxe4 {[%emt 0:00:35]} Rxe4 {[%emt 0:02:06]} 19. O-O {[%emt 0:00:51]} Qh4 {[%emt 0:04:12][%csl Gd6][%cal Rh4h2] [#]} 20. g3 {[%emt 0:00:17] Successful Defense White} Qe7 {[%emt 0:00:24]} 21. Rfe1 {[%emt 0:01:50]} Re8 {[%emt 0:00:28]} 22. Nc3 {[%emt 0:00:25]} Re6 {[%emt 0:00:24]} 23. Re2 {[%emt 0:00:19]} g6 {[%emt 0:07:19]} 24. Qd3 {[%emt 0:01:00]} h5 {[%emt 0:00:28]} 25. Rce1 $1 {[%emt 0:00:27]} f5 {[%emt 0:01:32]} 26. h4 {[%emt 0:00:18]} Qf6 {[%emt 0:01:15]} 27. Kg2 {[%emt 0:00:19] [#]} R8e7 {[%emt 0:00:39]} (27... g5 $1 $17 {[%cal Rg5h4]} 28. Rg1 R8e7 (28... gxh4 29. gxh4 Kh8 30. Kh3 $15)) 28. Rh1 $11 {[%emt 0:00:11]} b5 {[%emt 0:01:28]} (28... Rg7 $11) 29. Rc2 $16 {[%emt 0:00:36]} Qf7 {[%emt 0:25:48]} 30. Ne2 {[%emt 0:00:08]} Qe8 {[%emt 0:00:01][%cal Re6e3]} 31. Nf4 {[%emt 0:01:15]} ({White should try} 31. Qd2 $14) 31... Bxf4 $11 {[%emt 0:01:38]} 32. exf4 {[%emt 0:00:43]} Re1 {[%emt 0:01:14]} 33. Rc1 $2 {[%emt 0:00:33]} (33. b4 $11) 33... R1e2 $19 {[%emt 0:00:25][%cal Oe7e3]} 34. Qc3 {[%emt 0:00:27]} Kg7 {[%emt 0:15:13]} 35. Rhf1 $2 {[%emt 0:00:08]} (35. Kg1 $17) 35... R7e6 $2 {[%emt 0:00:38]} ({Better is} 35... R7e3 $19 36. Qb3 Qe4+ 37. Kg1 Rxb3 38. axb3 Qxd4 39. Rxc6 Rxb2) 36. Kg1 $11 {[%emt 0:00:07] The position is equal.} Qe7 {[%emt 0:00:43]} 37. a3 {[%emt 0:00:58]} R2e4 {[%emt 0:04:04]} 38. Rc2 {[%emt 0:00:23]} Re1 {[%emt 0:01:37]} 39. Rc1 {[%emt 0:00:03]} R1e2 {[%emt 0:01:06]} 40. b4 {[%emt 0:00:29]} R2e4 {[%emt 0:01:22]} 41. Rc2 {[%emt 0:00:50]} Re1 {[%emt 0:00:41]} 42. Rc1 {[%emt 0:00:01]} R1e2 {[%emt 0:00:05]} 43. Rc2 {[%emt 0:00:27]} R2e4 {[%emt 0:01:25]} 44. Rcc1 {[%emt 0:00:52]} Kf7 {[%emt 0:00:45][%cal Bg7f7,Bf7g8,Bg8h7,Bh7h6][%mdl 32]} 45. Rc2 {[%emt 0:01:11]} Qf6 {[%emt 0:00:23]} 46. Rd1 {[%emt 0:00:14]} Qe7 {[%emt 0:00:31]} 47. Rcc1 {[%emt 0:00:47]} Re2 {[%emt 0:00:54][%cal Oe2f2] ...Rxf2! is the strong threat.} 48. Rf1 {[%emt 0:00:25]} Kg8 {[%emt 0:00:28]} 49. Rc2 {[%emt 0:00:12]} R2e4 {[%emt 0:00:12]} 50. Rcc1 {[%emt 0:00:55]} Kh7 {[%emt 0:00:06]} 51. Rc2 {[%emt 0:00:15]} Kh6 {[%emt 0:00:25]} 52. Rcc1 {[%emt 0:00:34]} Re2 {[%emt 0:01:39]} 53. Rc2 {[%emt 0:00:06] And now Rxe2 would win.} R2e4 {[%emt 0:00:26]} 54. Rcc1 {[%emt 0:00:17]} a6 {[%emt 0:00:06]} 55. Rc2 {[%emt 0:00:23]} Qf6 {[%emt 0:01:22]} 56. Rd1 {[%emt 0:00:10]} Qg7 {[%emt 0:00:45]} 57. Rcc1 {[%emt 0:00:20]} Qe7 {[%emt 0:00:28]} 58. Rf1 {[%emt 0:00:27]} Qe8 {[%emt 0:00:41]} 59. Rc2 {[%emt 0:00:29]} Re1 {[%emt 0:00:11]} 60. Rc1 {[%emt 0:00:05]} R1e2 {[%emt 0:00:26]} 61. Rc2 {[%emt 0:00:39]} R2e4 {[%emt 0:01:00]} 62. Rcc1 {[%emt 0:00:10]} Re2 {[%emt 0:00:19] Weighted Error Value: White=0.21 (precise) /Black=0.12 (very precise)   Loses game:     	White=2     	---        Missed win:     	---       	Black=1      Mistake:       	White=1     	Black=2      Inaccurate:     	White=3     	Black=1      OK:         	White=19    	Black=13     Best:        	White=1     	Black=2      Strong:       	White=1     	---} 1/2-1/2

[Event "Silves Open 2025"]
[Site "Fissul"]
[Date "2025.03.05"]
[Round "6.2"]
[White "Lux, Hugo de Melo"]
[Black "Espinosa Aranda, Angel"]
[Result "1-0"]
[Annotator "TA"]
[ECO "C10"]
[WhiteElo "2329"]
[BlackElo "2442"]
[PlyCount "118"]
[EventDate "2025.03.03"]
[EventType "swiss"]
[EventCountry "POR"]
[SourceTitle "playchess.com"]
[Source "ChessBase"]
[SourceQuality "1"]
[TimeControl "5400+30"]

{[%evp 11,118,29,18,25,35,0,22,0,4,0,4,-25,-18,-24,-23,-25,-22,-19,0,0,21,23,149,148,146,151,145,145,166,142,204,198,235,90,94,98,93,88,89,85,86,86,86,87,87,86,87,87,96,77,78,74,74,74,82,74,74,0,0,0,0,0,0,0,0,0,0,0,0,0,0,0,0,0,0,0,0,0,0,0,0,0,0,0,0,0,0,0,8,0,0,0,0,0,29970,29971,29967,29968,29975,29976,29976,29976,29976,29976,29981,29982,29982,29983,29980]} 1. e4 {[%emt 0:04:10]} e6 {[%emt 0:00:20]} 2. d4 {[%emt 0:00:50]} d5 {[%emt 0:00:12]} 3. Nc3 {[%emt 0:00:22]} dxe4 {[%emt 0:00:25]} 4. Nxe4 {[%emt 0:00:28]} Nd7 {[%emt 0:00:34]} 5. Bd3 {[%emt 0:01:44]} Ngf6 {[%emt 0:00:38]} 6. Qe2 {[%emt 0:00:39]} c5 {[%emt 0:00:42]} 7. Nf3 {[%emt 0:04:45] C10: French with 3 Nc3: Unusual Black 3rd moves and 3...dxe4.} cxd4 {[%emt 0:02:40]} 8. Nxd4 {[%emt 0:10:35]} Nxe4 {[%emt 0:01:45]} 9. Qxe4 {[%emt 0:03:11] The position is equal.} Nc5 {[%emt 0:01:29]} 10. Bb5+ {[%emt 0:00:14]} Bd7 {[%emt 0:00:08]} 11. Bxd7+ {[%emt 0:08:52]} Qxd7 {[%emt 0:00:08]} 12. Qe5 $146 {[%emt 0:00:28]} (12. Qe3 O-O-O 13. b4 Na4 14. Bb2 Nxb2 15. Nf3 Qb5 16. a4 Qc4 17. Rc1 Bxb4+ {0-1 Scharrer,P (2210)-De Andres Gonalons,F (2071) Arco op 27th 2005 (7)}) 12... f6 {[%emt 0:09:08]} 13. Qh5+ {[%emt 0:00:59]} g6 {[%emt 0:00:08][%cal Bg7g6,Bg6g5][%mdl 32]} 14. Qh4 {[%emt 0:00:23][%cal Oe1g1]} O-O-O {[%emt 0:05:15]} 15. Be3 {[%emt 0:02:23][%cal Oe1c1]} g5 {[%emt 0:00:18]} 16. Qh5 {[%emt 0:00:36]} f5 {[%emt 0:09:24]} (16... e5 $11 17. Nb3 Na4) 17. O-O-O $1 $16 {[%emt 0:14:11]} (17. Qxg5 $6 Be7 18. Qh6 Bf8 $11) 17... Bg7 {[%emt 0:07:14] [#] Hoping for ...Qa4.} 18. Nb3 $1 {[%emt 0:06:41]} (18. Qxg5 Ne4 19. Qh5 Qd5 $14) 18... Nxb3+ {[%emt 0:04:57]} 19. axb3 {[%emt 0:00:10]} Qb5 {[%emt 0:00:16]} 20. Qxg5 {[%emt 0:04:13]} Qe5 {[%emt 0:02:31]} (20... Qa5 $16 21. Kb1 (21. Qxg7 $2 Qa1#) (21. Rxd8+ Rxd8 22. Kb1 Qe5 $18) 21... Qe5) 21. c3 $18 {[%emt 0:00:27]} (21. Bxa7 $2 Qxb2#) 21... Bf6 {[%emt 0:00:20] [#]} 22. Qf4 {[%emt 0:00:29]} (22. Qh6 $1 $18 {and White stays clearly on top.}) 22... Qxf4 $16 {[%emt 0:03:40]} 23. Bxf4 {[%emt 0:00:01]} e5 {[%emt 0:00:24]} 24. Be3 {[%emt 0:00:13]} Kc7 {[%emt 0:00:43]} 25. Rxd8 {[%emt 0:04:05]} (25. Bxa7 b6 $17) 25... Rxd8 {[%emt 0:01:10]} 26. Rd1 {[%emt 0:00:06]} (26. Bxa7 $2 Ra8 27. Kc2 Rxa7 $19) 26... Rxd1+ {[%emt 0:07:15]} 27. Kxd1 {[%emt 0:00:14][%mdl 4096] Endgame KB-KB. White is a pawn up.} a6 {[%emt 0:00:16]} 28. Ke2 {[%emt 0:00:41]} Kd6 {[%emt 0:01:45]} 29. f3 {[%emt 0:03:56]} h5 {[%emt 0:00:51]} 30. h3 {[%emt 0:00:43]} Kd5 {[%emt 0:09:07]} 31. c4+ {[%emt 0:10:23]} Ke6 {[%emt 0:00:07]} 32. Kd3 {[%emt 0:00:06]} Be7 {[%emt 0:03:33]} 33. Kc3 {[%emt 0:19:42]} Bf6 {[%emt 0:01:21]} 34. b4 {[%emt 0:00:00]} (34. Kc2 $16) 34... f4 $11 {[%emt 0:00:37]} 35. Bb6 {[%emt 0:00:00]} e4+ {[%emt 0:00:08]} 36. Kc2 {[%emt 0:00:00]} (36. Bd4 Bxd4+ 37. Kxd4 e3 $19) 36... e3 {[%emt 0:00:12]} 37. b3 {[%emt 0:00:00]} h4 {[%emt 0:02:59]} 38. Kd3 {[%emt 0:00:00]} Kf5 {[%emt 0:01:15]} 39. Ba5 {[%emt 0:00:00]} Ke6 {[%emt 0:00:47]} 40. Ke4 {[%emt 0:00:00]} Bc3 {[%emt 0:00:08]} 41. Kd3 {[%emt 0:00:04]} (41. Kxf4 $2 {too greedy.} e2 42. Bc7 e1=Q $19 (42... e1=B $2 43. Ke4 $19)) 41... Bf6 {[%emt 0:00:18]} 42. Ke4 {[%emt 0:01:45][%cal Ob4b5] and b5! should not be overlooked} Bc3 {[%emt 0:00:25] ( -> ...e2)} 43. Kd3 {[%emt 0:00:20]} (43. Kxf4 e2 44. Kg4 e1=Q (44... e1=B $2 45. Bd8 $19) 45. Bc7 Kf7 (45... Bxb4 $2 46. g3 $19) 46. Kh5 Qe6 (46... Bxb4 $2 47. c5 $19) 47. Kg5 Bf6+ (47... Bxb4 {is a self mate.} 48. Kxh4 Qg6 49. c5 Bxc5 50. g4 Bf2+ 51. Bg3 Qh6#) 48. Kf4 Kg6) 43... Bf6 {[%emt 0:01:52]} 44. b5 {[%emt 0:02:29]} axb5 {[%emt 0:00:11]} 45. Ke4 {[%emt 0:00:05]} bxc4 {[%emt 0:00:37]} 46. bxc4 {[%emt 0:00:01]} Bg5 {[%emt 0:02:13]} 47. Bb4 {[%emt 0:00:41]} Be7 {[%emt 0:02:29]} 48. Be1 {[%emt 0:00:13]} Bg5 {[%emt 0:00:06]} 49. Ba5 {[%emt 0:00:18]} Kd6 {[%emt 0:04:44]} 50. Bb4+ {[%emt 0:00:13]} Ke6 {[%emt 0:00:14]} 51. Ba5 {[%emt 0:00:01]} Kd6 {[%emt 0:00:04]} 52. Kf5 {[%emt 0:01:07]} Bh6 $2 {[%emt 0:00:06][%mdl 8192]} (52... Be7 $11) 53. Bb4+ {[%emt 0:00:56] White mates.} Kc6 {[%emt 0:02:05]} 54. Kg6 {[%emt 0:00:03]} b5 {[%emt 0:04:22]} 55. Kxh6 {[%emt 0:00:13]} bxc4 {[%emt 0:00:08]} 56. Kg5 {[%emt 0:00:08][%csl LRf4,LRh4]} Kb5 {[%emt 0:00:16]} 57. Be1 {[%emt 0:00:06]} c3 {[%emt 0:00:41]} 58. Bxc3 {[%emt 0:00:06]} Kc4 {[%emt 0:00:04]} 59. Be1 {[%emt 0:00:15]} Kd5 {[%emt 0:14:15] Weighted Error Value: White=0.09 (flawless) /Black=0.18 (very precise)   Loses game:     	---       	Black=1      Mistake:       	White=2     	Black=2      Inaccurate:     	White=1     	---        OK:         	White=18    	Black=20     Best:        	White=2     	Black=6      Strong:       	White=1     	---} 1-0

[Event "Silves Open 2025"]
[Site "Fissul"]
[Date "2025.03.05"]
[Round "6.4"]
[White "Serarols Mabras, Bernat"]
[Black "Martins, Bruno Andre Leite"]
[Result "1/2-1/2"]
[Annotator "TA"]
[ECO "E90"]
[WhiteElo "2311"]
[BlackElo "2360"]
[PlyCount "220"]
[EventDate "2025.03.03"]
[EventType "swiss"]
[EventCountry "POR"]
[SourceTitle "playchess.com"]
[Source "ChessBase"]
[SourceQuality "1"]
[TimeControl "5400+30"]

{[%evp 11,220,34,58,53,87,97,104,49,45,72,54,63,65,63,99,94,142,143,149,116,222,208,220,220,218,214,214,216,229,229,224,134,131,123,123,123,160,162,155,80,80,80,80,80,151,132,128,126,126,132,130,122,130,130,129,128,157,118,162,125,128,128,123,96,122,98,98,104,154,139,154,122,163,106,147,150,147,0,129,120,147,153,147,120,120,84,79,72,72,71,118,64,66,55,71,8,79,67,71,67,81,71,71,71,71,71,71,71,71,71,72,72,72,72,71,71,71,71,71,71,71,71,79,79,79,79,79,79,79,79,79,79,79,79,79,79,79,79,79,79,79,79,79,79,79,71,71,71,71,8,8,8,8,8,8,8,8,8,8,7,8,8,8,7,7,7,8,8,8,8,8,8,8,8,8,8,8,8,8,8,8,8,8,8,8,0,7,0,8,8,8,8,8,0,0,0,8,0,8,0,0,0,0,0,0,0,0,0,0,0,0]} 1. d4 {[%emt 0:00:02]} Nf6 {[%emt 0:05:15]} 2. c4 {[%emt 0:00:12]} g6 {[%emt 0:01:13]} 3. Nc3 {[%emt 0:00:08]} Bg7 {[%emt 0:00:09]} 4. e4 {[%emt 0:00:14]} d6 {[%emt 0:00:29]} 5. h3 {[%emt 0:00:53]} O-O {[%emt 0:00:25]} 6. Nf3 {[%emt 0:00:04]} a6 {[%emt 0:05:47]} 7. Be3 {[%emt 0:03:16]} b5 {[%emt 0:05:13]} 8. cxb5 {[%emt 0:08:53]} Bb7 {[%emt 0:00:21]} 9. d5 {[%emt 0:08:57]} ({Better is} 9. Qc2 $16) 9... axb5 $14 {[%emt 0:10:41]} 10. Bxb5 {[%emt 0:00:38]} c6 {[%emt 0:00:06] Wards off a4} 11. dxc6 {[%emt 0:00:46]} Nxc6 {[%emt 0:03:20]} 12. O-O {[%emt 0:03:05] White is more active.} Qa5 {[%emt 0:07:11][%cal Of6e4]} 13. Nd2 {[%emt 0:13:08]} Qb4 {[%emt 0:21:43]} (13... Na7 $142 14. Be2 Nd7) 14. Rb1 $16 {[%emt 0:13:25]} Ne5 {[%emt 0:05:57]} 15. f4 {[%emt 0:14:03]} Nxe4 {[%emt 0:05:15]} (15... Ned7 $16 {keeps fighting.}) 16. Ndxe4 $18 {[%emt 0:10:26]} Bxe4 {[%emt 0:02:07]} 17. a3 {[%emt 0:01:53]} (17. fxe5 $6 Bxb1 18. Qxb1 Bxe5 $16) 17... Rxa3 {[%emt 0:02:02]} 18. bxa3 {[%emt 0:03:52]} (18. fxe5 $6 Bxb1 19. bxa3 (19. Qxb1 Rb3 $11) 19... Qxc3 $14) 18... Qxc3 {[%emt 0:00:19]} 19. Rb3 {[%emt 0:02:33]} Qc2 {[%emt 0:02:51]} 20. Qxc2 {[%emt 0:02:30]} (20. fxe5 $2 Qxg2#) 20... Bxc2 {[%emt 0:00:02]} 21. Rc3 {[%emt 0:03:53]} (21. Rfb1 $18) 21... Nf3+ $16 {[%emt 0:02:17]} 22. gxf3 {[%emt 0:00:06]} Bxc3 {[%emt 0:00:12]} 23. Rc1 {[%emt 0:00:03]} Bb2 {[%emt 0:00:28]} 24. Rxc2 {[%emt 0:00:06]} Bxa3 {[%emt 0:00:04]} 25. Bd4 {[%emt 0:03:12] Against Bc5} (25. Bd3 $142) 25... Bc5 {[%emt 0:04:01]} 26. Bxc5 {[%emt 0:00:39]} Rc8 {[%emt 0:00:09]} 27. Bd3 {[%emt 0:00:42]} dxc5 {[%emt 0:03:07][%mdl 4096] Endgame KRB-KR} ({Black should try} 27... Rxc5 28. Rxc5 dxc5) 28. f5 {[%emt 0:00:56]} Kg7 {[%emt 0:01:30]} 29. fxg6 {[%emt 0:00:49]} hxg6 {[%emt 0:00:07]} 30. Kf2 {[%emt 0:00:44]} Kf6 {[%emt 0:00:36]} 31. Ke3 {[%emt 0:01:12]} Rh8 {[%emt 0:01:39]} 32. Bf1 {[%emt 0:00:19]} (32. Rxc5 Rxh3 33. Rb5 Rh8) 32... Rh5 {[%emt 0:00:54]} 33. Rc4 {[%emt 0:01:48]} e6 {[%emt 0:01:00]} 34. Kf2 {[%emt 0:01:40]} Rg5 {[%emt 0:03:27]} 35. Be2 {[%emt 0:00:37]} Rh5 {[%emt 0:00:53]} 36. Kg3 {[%emt 0:00:49]} Rg5+ {[%emt 0:02:03]} 37. Rg4 {[%emt 0:00:29]} Re5 {[%emt 0:01:57]} 38. Bf1 {[%emt 0:00:31]} Re1 {[%emt 0:00:45]} 39. Kf2 {[%emt 0:00:50]} Re5 {[%emt 0:00:11]} (39... Rc1 $142 40. Ra4 Rc2+ 41. Kg3 Rc1) 40. Rf4+ {[%emt 0:00:17]} Kg7 {[%emt 0:01:22]} 41. Rc4 {[%emt 0:00:23]} Kf6 {[%emt 0:00:35]} 42. h4 {[%emt 0:01:11]} (42. Ra4 $18) 42... Rh5 {[%emt 0:00:22]} 43. Rf4+ {[%emt 0:00:19]} Ke7 {[%emt 0:00:55]} 44. Rc4 {[%emt 0:00:38]} Kf6 $1 {[%emt 0:00:12]} 45. Be2 {[%emt 0:00:44]} g5 {[%emt 0:01:55]} 46. hxg5+ {[%emt 0:00:10]} (46. Rxc5 Rxh4 47. Bd3 Rf4) 46... Rxg5 {[%emt 0:00:07]} 47. Bd3 {[%emt 0:00:13]} Ke7 {[%emt 0:01:00]} 48. Ke3 {[%emt 0:00:08]} Re5+ {[%emt 0:00:38]} 49. Kd2 {[%emt 0:00:36]} Rh5 {[%emt 0:00:32]} 50. Rf4 {[%emt 0:00:19]} Rh8 {[%emt 0:00:54] [#]} (50... f5 $142) 51. Kc3 {[%emt 0:00:08]} (51. Ra4 $1 $16) 51... Ra8 {[%emt 0:00:20]} 52. Bc2 {[%emt 0:00:58]} Ra7 {[%emt 0:00:58]} 53. Ra4 {[%emt 0:00:47]} (53. Bb3 $16) 53... Rd7 {[%emt 0:00:36]} (53... Rxa4 $11 54. Bxa4 Kd6) 54. Be4 {[%emt 0:00:19]} Kf6 {[%emt 0:00:18]} 55. Ra5 {[%emt 0:00:19]} Rc7 {[%emt 0:00:08]} 56. Kc4 {[%emt 0:00:18]} Ke5 {[%emt 0:00:10]} 57. Ra6 {[%emt 0:00:07]} (57. Rxc5+ Rxc5+ 58. Kxc5 f5) 57... Kf4 {[%emt 0:00:31]} 58. Bc6 {[%emt 0:00:12]} f5 {[%emt 0:00:47]} 59. Kxc5 {[%emt 0:00:03] and Kd6 would now be decisive} e5 {[%emt 0:00:07]} 60. Kd6 {[%emt 0:01:30]} Rg7 {[%emt 0:00:42]} 61. Ra4+ {[%emt 0:00:12]} e4 {[%emt 0:00:11]} 62. fxe4 {[%emt 0:00:09]} fxe4 {[%emt 0:00:29]} 63. Rxe4+ {[%emt 0:00:06]} Kf5 {[%emt 0:00:34]} 64. Re3 {[%emt 0:01:21]} Kf4 {[%emt 0:00:13]} 65. Rf3+ {[%emt 0:00:10]} Kg4 {[%emt 0:00:37]} 66. Rf1 {[%emt 0:00:47] Rg1+ would kill now.} Rg5 {[%emt 0:00:09]} 67. Bd5 {[%emt 0:00:33]} Kg3 {[%emt 0:00:05]} 68. Kc5 {[%emt 0:00:43]} Rg4 {[%emt 0:00:06]} 69. Rf3+ {[%emt 0:00:19]} Kh4 {[%emt 0:00:16]} 70. Kd6 {[%emt 0:00:53]} Rg3 {[%emt 0:00:17]} 71. Rf1 {[%emt 0:00:30]} Rg5 {[%emt 0:00:22]} 72. Ke6 {[%emt 0:00:26]} Kg3 {[%emt 0:00:42]} 73. Be4 {[%emt 0:00:18]} Ra5 {[%emt 0:00:51]} 74. Bd5 {[%emt 0:00:24]} Kg4 {[%emt 0:01:26]} 75. Ke5 {[%emt 0:00:21]} Kg5 {[%emt 0:00:14]} 76. Rg1+ {[%emt 0:00:09]} Kh5 {[%emt 0:00:08]} 77. Ke4 {[%emt 0:00:18]} Kh6 {[%emt 0:00:07]} 78. Be6 {[%emt 0:00:20]} Rg5 {[%emt 0:00:09]} 79. Rf1 {[%emt 0:00:43]} Kg7 {[%emt 0:00:34]} ({Reject} 79... Rg6 80. Ke5) 80. Bf5 {[%emt 0:00:10]} (80. Kd4 $16) 80... Kf6 $11 {[%emt 0:00:24]} 81. Rf2 {[%emt 0:00:07]} Rg1 {[%emt 0:00:30]} 82. Kf4 {[%emt 0:00:13]} Re1 {[%emt 0:00:22]} 83. Be4 {[%emt 0:00:06]} Ke6 {[%emt 0:00:25]} 84. Rc2 {[%emt 0:00:10]} Rf1+ {[%emt 0:00:07]} 85. Bf3 $1 {[%emt 0:00:02]} Re1 {[%emt 0:00:22]} 86. Rc6+ {[%emt 0:00:05]} Kd7 {[%emt 0:01:00]} 87. Ra6 {[%emt 0:00:15]} Ke7 {[%emt 0:00:15]} 88. Be4 {[%emt 0:00:07]} Kf7 {[%emt 0:00:16]} 89. Kf5 {[%emt 0:00:21]} Rf1+ {[%emt 0:00:32]} 90. Ke5 {[%emt 0:00:07]} Re1 {[%emt 0:00:16]} 91. Ra7+ {[%emt 0:01:35]} Ke8 {[%emt 0:00:12]} 92. Rh7 {[%emt 0:00:08]} Re2 {[%emt 0:00:25]} 93. Rh1 {[%emt 0:00:39]} Kd7 {[%emt 0:00:37]} 94. Rd1+ {[%emt 0:00:09]} Ke7 {[%emt 0:00:37]} 95. Ra1 {[%emt 0:02:39]} Kd7 {[%emt 0:00:07]} 96. Ra3 {[%emt 0:00:10]} Re1 {[%emt 0:00:51]} 97. Kd5 {[%emt 0:01:59]} Rd1+ {[%emt 0:00:21]} 98. Ke5 {[%emt 0:00:22]} Re1 {[%emt 0:00:07]} 99. Ra7+ {[%emt 0:00:10]} Ke8 {[%emt 0:00:08]} 100. Rb7 {[%emt 0:00:45]} Re2 {[%emt 0:00:08]} 101. Kd5 {[%emt 0:00:28]} Kf8 {[%emt 0:00:06]} 102. Ra7 {[%emt 0:00:33]} Re1 {[%emt 0:00:09]} 103. Bf5 {[%emt 0:00:36]} Re7 {[%emt 0:00:07]} 104. Ra8+ {[%emt 0:00:05]} Re8 {[%emt 0:01:06]} 105. Ra6 {[%emt 0:00:09]} Re1 {[%emt 0:00:16]} 106. Be6 {[%emt 0:00:42]} Ke7 {[%emt 0:00:16]} 107. Ra7+ {[%emt 0:00:12]} Kf6 {[%emt 0:00:05]} 108. Rf7+ {[%emt 0:00:07]} Kg6 {[%emt 0:00:30]} 109. Rf4 {[%emt 0:00:02]} Kg5 {[%emt 0:00:21]} 110. Rg4+ {[%emt 0:00:02]} Kf6 {[%emt 0:00:10]} 1/2-1/2